bitfinex/quotes_BTCUSD_20240611
["timestamp","ask_amount","ask_price","bid_price","bid_amount"]
[1718143484474,1.40457108,67444.0,67443.0,3.23783664]
[1718143488325,1.40457108,67444.0,67443.0,3.33783664]
[1718143488568,0.18457108,67444.0,67443.0,3.33783664]
[1718143488791,0.18457108,67444.0,67443.0,3.36377002]
[1718143489417,0.00857,67452.0,67443.0,3.36377002]
[1718143489418,0.00857,67452.0,67451.0,2.44239231]
[1718143489629,0.00857,67452.0,67451.0,3.11517888]
[1718143489846,0.00857,67452.0,67451.0,3.64116216]
[1718143490708,0.00857,67452.0,67451.0,3.34776038]
[1718143490961,0.00857,67452.0,67451.0,3.65211127]
[1718143491191,0.00857,67452.0,67451.0,3.66611127]
[1718143494036,0.00857,67452.0,67451.0,3.66867991]
[1718143494186,0.00857,67452.0,67451.0,3.66867565]
[1718143494654,0.00857,67452.0,67451.0,3.95418665]
[1718143494977,0.00857,67452.0,67451.0,4.14971814]
[1718143495212,0.00857,67452.0,67451.0,3.95418665]
[1718143496068,0.00857,67452.0,67451.0,3.96518665]
[1718143496269,0.00857,67452.0,67451.0,3.95895566]
[1718143496481,0.00857,67452.0,67451.0,3.93395566]
[1718143496687,0.00857,67457.0,67456.0,2.20572631]
[1718143496901,0.00857,67457.0,67456.0,3.47183573]
[1718143497310,0.00857,67457.0,67456.0,3.64617866]
[1718143497525,0.00857,67457.0,67456.0,3.84157779]
[1718143497839,0.00857,67457.0,67456.0,3.86657779]
[1718143498248,0.00857,67457.0,67456.0,3.65425047]
[1718143498451,0.00857,67457.0,67456.0,3.65421181]
[1718143498914,0.00857,67457.0,67456.0,3.75421181]
[1718143499135,0.00857,67457.0,67456.0,3.74321181]
[1718143499455,0.00857,67457.0,67456.0,3.75421181]
[1718143499666,0.00857,67457.0,67456.0,3.76821181]
[1718143499875,0.00857,67457.0,67456.0,3.74321181]
[1718143500085,0.00857,67457.0,67456.0,3.75178181]
[1718143500289,0.00857,67457.0,67456.0,3.77678181]
[1718143500428,0.00857,67457.0,67456.0,3.76278181]
[1718143500857,1e-06,67457.0,67456.0,3.76578181]
[1718143501064,0.00857,67471.0,67469.0,1.96156331]
[1718143501269,0.00857,67471.0,67469.0,3.28108846]
[1718143501496,0.00857,67471.0,67469.0,3.42107556]
[1718143501707,0.23897,67470.0,67469.0,2.56409356]
[1718143501916,0.23897,67470.0,67469.0,2.38427381]
[1718143502149,0.23897,67470.0,67469.0,2.48254972]
[1718143502359,0.23897,67470.0,67469.0,2.37222385]
[1718143502775,0.23897,67470.0,67469.0,2.38322385]
[1718143503005,0.23897,67470.0,67469.0,2.33110646]
[1718143503205,0.23897,67470.0,67469.0,2.21714646]
[1718143503415,0.00857,67470.0,67469.0,2.37221451]
[1718143503648,0.00857,67470.0,67469.0,2.39721451]
[1718143503864,0.00857,67470.0,67469.0,2.38321451]
[1718143504065,0.00857,67470.0,67469.0,2.31710646]
[1718143504279,0.00857,67470.0,67469.0,2.39720295]
[1718143504696,0.00857,67470.0,67469.0,2.33110646]
[1718143504905,0.00857,67470.0,67469.0,2.61927381]
[1718143505130,0.00857,67470.0,67469.0,2.41927381]
[1718143505706,0.00857,67470.0,67469.0,2.81570581]
[1718143505923,0.00857,67470.0,67469.0,2.70253846]
[1718143506355,0.00857,67470.0,67469.0,2.72753846]
[1718143506797,0.00857,67470.0,67469.0,2.79062421]
[1718143507016,0.00857,67470.0,67469.0,3.18233518]
[1718143507225,0.00857,67470.0,67469.0,3.16833518]
[1718143507444,0.00857,67470.0,67469.0,2.96833518]
[1718143507670,0.00857,67470.0,67469.0,2.87212599]
[1718143507883,0.00857,67470.0,67469.0,2.86912599]
[1718143508526,0.00857,67470.0,67469.0,2.71354065]
[1718143508733,0.00857,67470.0,67469.0,2.91354065]
[1718143509186,0.00857,67470.0,67469.0,2.79062421]
[1718143509400,0.00857,67470.0,67469.0,2.99059197]
[1718143509627,0.00857,67470.0,67469.0,2.79059197]
[1718143509831,0.00857,67470.0,67469.0,2.81559197]
[1718143511382,0.00857,67470.0,67469.0,2.47702543]
[1718143511617,0.00857,67470.0,67469.0,2.5750781]
[1718143511824,0.00857,67470.0,67469.0,2.40915997]
[1718143512038,0.00857,67470.0,67469.0,1.6735753]
[1718143512251,0.00857,67470.0,67469.0,1.79959272]
[1718143512487,0.00857,67470.0,67469.0,1.8555753]
[1718143512718,0.00857,67470.0,67469.0,1.8445753]
[1718143512947,0.00857,67470.0,67469.0,1.8415753]
[1718143513641,0.00857,67470.0,67469.0,2.3171073]
[1718143513860,0.00857,67470.0,67469.0,2.3311073]
[1718143514077,0.23767,67470.0,67469.0,2.0929633]
[1718143514277,0.23767,67470.0,67469.0,2.1649633]
[1718143515156,0.23767,67470.0,67469.0,2.1647633]
[1718143516653,0.23767,67470.0,67469.0,2.1747633]
[1718143516862,0.23767,67470.0,67469.0,2.1647633]
[1718143517077,0.23767,67470.0,67469.0,1.7963313]
[1718143517736,0.23767,67470.0,67469.0,1.48902333]
[1718143518016,0.23767,67470.0,67469.0,1.48904604]
[1718143518678,0.23767,67470.0,67469.0,1.47804604]
[1718143519122,0.23767,67470.0,67469.0,1.47504604]
[1718143519300,0.23767,67470.0,67469.0,2.07882133]
[1718143519533,0.00857,67470.0,67469.0,2.10282133]
[1718143519749,0.00857,67470.0,67469.0,2.09282133]
[1718143520196,0.00857,67470.0,67469.0,2.10281576]
[1718143521813,0.00857,67470.0,67469.0,2.09281576]
[1718143522219,0.00857,67470.0,67469.0,2.16481576]
[1718143522574,0.00857,67470.0,67469.0,2.21887117]
[1718143522781,0.00757,67470.0,67469.0,2.21887117]
[1718143522969,0.00757,67470.0,67469.0,2.21886441]
[1718143523411,0.00757,67470.0,67469.0,2.174809]
[1718143523832,0.00757,67470.0,67469.0,2.24089212]
[1718143525968,0.00757,67470.0,67469.0,2.24090564]
[1718143526840,0.00757,67470.0,67469.0,2.23090564]
[1718143527064,0.00757,67470.0,67469.0,2.092809]
[1718143527513,0.00757,67470.0,67469.0,2.13688954]
[1718143529111,0.23797,67470.0,67469.0,1.84045754]
[1718143529591,0.23797,67470.0,67469.0,1.796377]
[1718143530090,0.23797,67470.0,67469.0,1.79638511]
[1718143531503,0.23797,67470.0,67469.0,1.81285235]
[1718143533185,0.23797,67470.0,67469.0,1.85693289]
[1718143533823,0.00757,67470.0,67469.0,2.15336489]
[1718143534047,0.00757,67470.0,67469.0,2.17538099]
[1718143534258,0.00757,67470.0,67469.0,2.19741321]
[1718143537082,0.00757,67470.0,67469.0,2.10928435]
[1718143537484,0.00757,67470.0,67469.0,2.19741321]
[1718143538330,0.00757,67470.0,67469.0,2.26941321]
[1718143540304,0.00757,67470.0,67469.0,2.27941255]
[1718143542229,0.00757,67470.0,67469.0,2.15647963]
[1718143542426,0.00757,67470.0,67469.0,2.27941247]
[1718143543686,0.00757,67470.0,67469.0,2.65315847]
[1718143543893,0.00757,67470.0,67469.0,2.57502961]
[1718143545636,0.00757,67470.0,67469.0,2.83138901]
[1718143545837,0.00757,67470.0,67469.0,3.03138901]
[1718143546040,0.00757,67470.0,67469.0,3.21988276]
[1718143547335,0.00757,67470.0,67469.0,3.51631476]
[1718143547510,0.00757,67470.0,67469.0,3.31631476]
[1718143547712,0.00757,67470.0,67469.0,3.61631476]
[1718143547965,0.00757,67470.0,67469.0,3.76587371]
[1718143550006,0.00757,67470.0,67469.0,3.56587371]
[1718143550209,0.00757,67470.0,67469.0,3.76587371]
[1718143551485,0.00757,67470.0,67469.0,3.82383053]
[1718143551692,0.00757,67470.0,67469.0,3.51648724]
[1718143551919,0.00757,67470.0,67469.0,3.8237767]
[1718143552308,0.00757,67470.0,67469.0,3.6237767]
[1718143552526,0.00757,67470.0,67469.0,3.4539767]
[1718143552735,0.00757,67470.0,67469.0,3.5359767]
[1718143554480,0.00757,67470.0,67469.0,3.53597958]
[1718143555452,0.00757,67470.0,67469.0,3.53597913]
[1718143557378,0.00757,67470.0,67469.0,3.53306725]
[1718143557594,0.00757,67470.0,67469.0,3.22577536]
[1718143557804,0.00757,67470.0,67469.0,3.5330677]
[1718143559298,0.00757,67470.0,67469.0,3.47502567]
[1718143559434,0.00757,67470.0,67469.0,3.53304343]
[1718143560757,0.00757,67470.0,67469.0,3.28394343]
[1718143560965,0.00757,67470.0,67469.0,3.29394343]
[1718143561223,0.00757,67470.0,67469.0,2.97731987]
[1718143562051,0.00757,67470.0,67469.0,2.42562221]
[1718143562255,0.08257,67470.0,67469.0,2.50762221]
[1718143562462,0.08257,67470.0,67469.0,2.35020311]
[1718143562946,0.08257,67470.0,67469.0,2.32977744]
[1718143564072,0.00757,67470.0,67469.0,2.16924582]
[1718143564291,0.00757,67470.0,67469.0,2.32983616]
[1718143568300,0.00757,67470.0,67469.0,2.24783616]
[1718143568535,0.00757,67470.0,67469.0,2.31983616]
[1718143569185,0.00757,67470.0,67469.0,2.32983616]
[1718143570259,0.00757,67470.0,67469.0,2.25783616]
[1718143570528,0.00757,67470.0,67469.0,2.32983616]
[1718143572057,0.00757,67470.0,67469.0,2.24783616]
[1718143572274,0.00757,67470.0,67469.0,2.32983616]
[1718143573341,0.00757,67470.0,67469.0,2.33070027]
[1718143573781,0.00757,67470.0,67469.0,1.53963696]
[1718143573995,0.00757,67470.0,67469.0,1.37345152]
[1718143573996,0.24907,67470.0,67469.0,1.37345152]
[1718143574419,0.24907,67470.0,67469.0,1.32926827]
[1718143575092,0.24907,67470.0,67469.0,1.39554315]
[1718143576004,0.24907,67470.0,67469.0,1.32926827]
[1718143577073,0.24907,67470.0,67469.0,1.39554315]
[1718143577284,0.00757,67470.0,67469.0,1.41854315]
[1718143577527,0.00757,67470.0,67469.0,1.35226827]
[1718143581936,0.00757,67470.0,67469.0,1.41852672]
[1718143582339,0.00757,67470.0,67469.0,1.35226827]
[1718143582541,0.00757,67470.0,67469.0,1.36226827]
[1718143582767,0.00757,67470.0,67469.0,1.42852473]
[1718143583173,0.00757,67470.0,67469.0,1.36226827]
[1718143583604,0.00757,67470.0,67469.0,1.25891331]
[1718143583803,0.00757,67470.0,67469.0,1.44725949]
[1718143583999,0.00757,67470.0,67469.0,1.35891805]
[1718143584440,0.00757,67470.0,67469.0,1.44725949]
[1718143584860,0.00757,67470.0,67469.0,1.44712413]
[1718143585281,0.00757,67470.0,67469.0,1.35878269]
[1718143586370,0.00757,67470.0,67469.0,1.46920949]
[1718143588481,0.00757,67470.0,67469.0,1.76564149]
[1718143588688,0.00757,67470.0,67469.0,1.83780145]
[1718143588899,0.00757,67470.0,67469.0,1.97137465]
[1718143590424,0.00757,67470.0,67469.0,1.87136991]
[1718143590649,0.00757,67470.0,67469.0,1.97229131]
[1718143590855,0.00757,67470.0,67469.0,1.96229131]
[1718143591069,0.00757,67470.0,67469.0,2.03429131]
[1718143591274,0.00757,67470.0,67469.0,2.04429131]
[1718143592321,0.00757,67470.0,67469.0,1.63346004]
[1718143592552,0.00757,67470.0,67469.0,1.34969935]
[1718143592761,0.00757,67470.0,67469.0,1.46011106]
[1718143592977,0.00757,67470.0,67469.0,1.43804056]
[1718143593210,0.00757,67470.0,67469.0,1.34969935]
[1718143594067,0.00757,67470.0,67469.0,1.46011106]
[1718143594276,0.00757,67470.0,67469.0,1.46014024]
[1718143595145,0.00757,67470.0,67469.0,1.46015178]
[1718143595552,0.00757,67470.0,67469.0,1.47015178]
[1718143595987,0.00757,67470.0,67469.0,1.76658378]
[1718143596208,0.00757,67470.0,67469.0,1.69861965]
[1718143596421,0.00757,67470.0,67469.0,1.71824877]
[1718143597230,0.00757,67470.0,67469.0,1.72824877]
[1718143598316,0.00757,67470.0,67469.0,1.72824537]
[1718143598854,0.00757,67470.0,67469.0,1.71824537]
[1718143599895,0.00757,67470.0,67469.0,1.71780537]
[1718143600095,0.00757,67470.0,67469.0,1.71780466]
[1718143602262,0.00757,67470.0,67469.0,1.72780466]
[1718143602884,0.00757,67470.0,67469.0,1.72851886]
[1718143603572,0.00757,67470.0,67469.0,1.71851886]
[1718143606814,0.00757,67470.0,67469.0,1.64651886]
[1718143607031,0.00757,67470.0,67469.0,1.11441555]
[1718143607284,0.23877,67470.0,67469.0,1.32708686]
[1718143609853,0.00757,67470.0,67469.0,1.39908686]
[1718143611117,0.00757,67470.0,67469.0,1.39911277]
[1718143611362,0.00757,67470.0,67469.0,1.32711277]
[1718143611559,0.00757,67470.0,67469.0,1.39911277]
[1718143612728,0.00757,67470.0,67469.0,1.39867277]
[1718143614201,0.00757,67470.0,67469.0,1.32667277]
[1718143614443,0.00757,67470.0,67469.0,1.39867277]
[1718143615657,0.00757,67470.0,67469.0,1.39866963]
[1718143616747,0.00757,67470.0,67469.0,1.31399832]
[1718143616903,0.00757,67470.0,67469.0,1.32666963]
[1718143621506,0.00757,67470.0,67469.0,1.3266537]
[1718143621727,0.00757,67470.0,67469.0,1.6230857]
[1718143621955,0.00757,67470.0,67469.0,1.8935857]
[1718143622631,0.00757,67470.0,67469.0,1.9035857]
[1718143624509,0.00757,67470.0,67469.0,1.88191569]
[1718143624948,0.00757,67470.0,67469.0,1.94391569]
[1718143625176,0.00757,67470.0,67469.0,1.95391569]
[1718143625859,0.00757,67470.0,67469.0,2.39624769]
[1718143626083,0.00757,67470.0,67469.0,2.72163102]
[1718143626583,0.00757,67470.0,67469.0,2.72119102]
[1718143627549,0.00757,67470.0,67469.0,2.58855202]
[1718143631877,0.00757,67470.0,67469.0,2.58853346]
[1718143632936,0.00757,67470.0,67469.0,2.28123575]
[1718143633136,0.00757,67470.0,67469.0,2.40578921]
[1718143633552,0.00757,67470.0,67469.0,2.58853354]
[1718143635005,0.00757,67470.0,67469.0,2.57853354]
[1718143635181,0.00757,67470.0,67469.0,2.58853354]
[1718143635401,0.00757,67470.0,67469.0,2.58725417]
[1718143636015,0.00757,67470.0,67469.0,2.60547302]
[1718143636963,0.00757,67470.0,67469.0,2.60547232]
[1718143637377,0.00757,67470.0,67469.0,2.60547233]
[1718143637582,0.00757,67470.0,67469.0,2.45797233]
[1718143637785,0.00757,67470.0,67469.0,2.81553744]
[1718143638007,0.00757,67470.0,67469.0,3.3025405]
[1718143638267,0.00757,67470.0,67469.0,3.27648309]
[1718143639677,0.00757,67470.0,67469.0,3.21839292]
[1718143639887,0.00757,67470.0,67469.0,3.2045538]
[1718143640096,0.00757,67470.0,67469.0,3.2765538]
[1718143640298,0.00757,67470.0,67469.0,2.81560815]
[1718143640710,0.00757,67470.0,67469.0,3.27654478]
[1718143640959,0.00757,67470.0,67469.0,2.81560815]
[1718143641383,0.00757,67470.0,67469.0,2.51917615]
[1718143641590,0.00757,67470.0,67469.0,2.40494878]
[1718143642854,0.00757,67470.0,67469.0,2.40652811]
[1718143643078,0.00657,67470.0,67469.0,2.40652811]
[1718143643513,0.00657,67470.0,67469.0,2.53909493]
[1718143644164,0.00657,67470.0,67469.0,2.53885302]
[1718143644388,0.00657,67470.0,67469.0,2.83528502]
[1718143644611,0.00657,67470.0,67469.0,2.7027182]
[1718143645453,0.00657,67470.0,67469.0,3.27688046]
[1718143646144,0.00657,67470.0,67469.0,3.27579678]
[1718143647048,0.00657,67470.0,67469.0,3.27569317]
[1718143651118,0.00657,67470.0,67469.0,3.2757763]
[1718143652541,0.00657,67470.0,67469.0,3.4757763]
[1718143653581,0.00657,67470.0,67469.0,3.2757763]
[1718143653906,0.00657,67470.0,67469.0,3.27576867]
[1718143654137,0.00657,67470.0,67469.0,3.39609454]
[1718143654353,0.00657,67470.0,67469.0,3.30182721]
[1718143654817,0.00657,67470.0,67469.0,3.30171721]
[1718143655031,0.00657,67470.0,67469.0,3.30147737]
[1718143661055,0.00657,67470.0,67469.0,3.50147737]
[1718143662179,0.00657,67470.0,67469.0,3.30147737]
[1718143664060,0.00657,67470.0,67469.0,3.30125737]
[1718143665694,0.00657,67470.0,67469.0,3.50125737]
[1718143665930,0.00657,67470.0,67469.0,3.30125737]
[1718143666532,0.00657,67470.0,67469.0,3.30122116]
[1718143667495,0.00657,67470.0,67469.0,3.30953545]
[1718143669534,0.00657,67470.0,67469.0,3.34142753]
[1718143671263,0.00657,67470.0,67469.0,3.54142753]
[1718143671869,0.00657,67470.0,67469.0,3.34142753]
[1718143674960,0.00657,67470.0,67469.0,3.34096385]
[1718143675405,0.00657,67470.0,67469.0,3.46128972]
[1718143675615,0.00657,67470.0,67469.0,3.34096385]
[1718143677206,0.00657,67470.0,67469.0,3.34092385]
[1718143677648,0.00657,67470.0,67469.0,3.09762385]
[1718143680404,0.00657,67470.0,67469.0,2.63670316]
[1718143680612,0.00657,67470.0,67469.0,3.09762385]
[1718143681239,0.00657,67470.0,67469.0,3.09848711]
[1718143681414,0.00657,67470.0,67469.0,3.07458611]
[1718143681654,0.00657,67470.0,67469.0,3.0943927]
[1718143681863,0.00657,67470.0,67469.0,2.86692962]
[1718143682072,0.00657,67470.0,67469.0,2.63346469]
[1718143682944,0.00657,67470.0,67469.0,2.40600893]
[1718143683157,0.00657,67470.0,67469.0,2.82980465]
[1718143684298,0.00657,67470.0,67469.0,3.29072534]
[1718143686601,0.00657,67470.0,67469.0,3.28072534]
[1718143686846,0.00657,67470.0,67469.0,3.21872534]
[1718143687082,0.00657,67470.0,67469.0,3.29072534]
[1718143687298,0.00657,67470.0,67469.0,3.28944273]
[1718143688160,0.00657,67470.0,67469.0,3.29010336]
[1718143688820,0.00657,67470.0,67469.0,3.09422214]
[1718143689246,0.00657,67470.0,67469.0,3.09423415]
[1718143689465,0.00657,67470.0,67469.0,2.63331346]
[1718143689902,0.00657,67470.0,67469.0,2.60725492]
[1718143690162,0.00657,67470.0,67469.0,2.32333338]
[1718143690387,0.00657,67470.0,67469.0,2.61120941]
[1718143690612,0.00657,67470.0,67469.0,2.63727167]
[1718143691475,0.00657,67470.0,67469.0,3.09819236]
[1718143692127,0.00657,67470.0,67469.0,2.63727167]
[1718143692633,0.00657,67470.0,67469.0,2.5546164]
[1718143692856,0.00657,67470.0,67469.0,2.6266164]
[1718143693066,0.00657,67470.0,67469.0,2.6366164]
[1718143693291,0.00657,67470.0,67469.0,2.63673333]
[1718143693934,0.00657,67470.0,67469.0,2.61067107]
[1718143694546,0.00657,67470.0,67469.0,2.63673308]
[1718143695318,0.00657,67470.0,67469.0,2.63703001]
[1718143697025,0.00657,67470.0,67469.0,3.0979507]
[1718143697436,0.00657,67470.0,67469.0,2.63794822]
[1718143699905,0.00657,67470.0,67469.0,2.62794822]
[1718143700130,0.00657,67470.0,67469.0,2.60188621]
[1718143700369,0.00657,67470.0,67469.0,2.61188621]
[1718143700809,0.00657,67470.0,67469.0,2.1613149]
[1718143700992,0.08317,67470.0,67469.0,2.44602656]
[1718143701691,0.23557,67470.0,67469.0,2.07759456]
[1718143702347,0.23557,67470.0,67469.0,1.75765298]
[1718143703072,0.23557,67470.0,67469.0,1.83170923]
[1718143705351,0.23557,67470.0,67469.0,1.83163105]
[1718143706979,0.23557,67470.0,67469.0,1.75963105]
[1718143707188,0.23557,67470.0,67469.0,1.54484762]
[1718143707380,0.23557,67470.0,67469.0,1.44195746]
[1718143707591,0.23557,67470.0,67469.0,1.30930889]
[1718143707852,0.23557,67470.0,67469.0,1.4325447]
[1718143708250,0.23557,67470.0,67469.0,1.3219802]
[1718143708661,0.23557,67470.0,67469.0,1.30053496]
[1718143709297,0.23557,67470.0,67469.0,1.38894205]
[1718143709897,0.23557,67470.0,67469.0,1.37627074]
[1718143710095,0.23557,67470.0,67469.0,1.38894205]
[1718143710302,0.23557,67470.0,67469.0,1.37627074]
[1718143710650,0.23557,67470.0,67469.0,1.38894205]
[1718143710855,0.23557,67470.0,67469.0,1.37627074]
[1718143711054,0.23557,67470.0,67469.0,1.38894205]
[1718143711272,0.23557,67470.0,67469.0,1.36641582]
[1718143711488,0.23557,67470.0,67469.0,1.27800873]
[1718143711700,0.23557,67470.0,67469.0,1.2742128]
[1718143712552,0.23557,67470.0,67469.0,1.26154149]
[1718143712791,0.23557,67470.0,67469.0,1.26153658]
[1718143713396,0.23557,67470.0,67469.0,1.32780615]
[1718143713814,0.23557,67470.0,67469.0,1.32808521]
[1718143714045,0.26304853,67470.0,67469.0,0.82845571]
[1718143714263,0.26304853,67470.0,67469.0,0.72117525]
[1718143714492,0.26304853,67470.0,67469.0,0.58194367]
[1718143714914,0.23557,67470.0,67469.0,0.38194367]
[1718143715904,0.23557,67470.0,67469.0,0.58194367]
[1718143716394,0.23557,67470.0,67469.0,0.59841065]
[1718143717329,0.23557,67470.0,67469.0,0.39841065]
[1718143717538,0.23557,67470.0,67469.0,0.25232465]
[1718143717753,0.235814,67470.0,67469.0,0.25232465]
[1718143718895,0.235814,67470.0,67469.0,0.23832465]
[1718143719331,0.235814,67470.0,67469.0,0.23932465]
[1718143719731,0.235814,67470.0,67469.0,0.22832465]
[1718143720361,0.237814,67470.0,67469.0,0.22832465]
[1718143722307,0.237814,67470.0,67469.0,0.12836465]
[1718143723675,0.386028,67470.0,67469.0,0.12836465]
[1718143724110,0.53034793,67470.0,67469.0,0.12836465]
[1718143724359,0.52834793,67470.0,67469.0,0.12836465]
[1718143724574,0.53034793,67470.0,67469.0,0.101946]
[1718143724788,0.63494297,67470.0,67469.0,0.101946]
[1718143725008,0.71109929,67470.0,67469.0,0.101946]
[1718143725214,0.70709929,67470.0,67469.0,0.100946]
[1718143725426,0.70909929,67470.0,67469.0,0.101946]
[1718143725638,0.71109929,67470.0,67469.0,0.101946]
[1718143726062,0.70909929,67470.0,67469.0,0.101946]
[1718143726270,0.71109929,67470.0,67469.0,0.102946]
[1718143726909,0.80909929,67470.0,67469.0,0.101946]
[1718143727118,0.81509929,67470.0,67469.0,0.102946]
[1718143727531,0.81608839,67470.0,67469.0,0.102946]
[1718143727958,0.91608839,67470.0,67469.0,0.102946]
[1718143729554,0.81050425,67470.0,67469.0,0.102946]
[1718143730855,0.91075373,67470.0,67469.0,0.102946]
[1718143731264,1.20718173,67470.0,67469.0,0.102946]
[1718143731665,1.27918173,67470.0,67469.0,0.102946]
[1718143732303,1.27318173,67470.0,67469.0,0.101946]
[1718143732502,1.27318173,67470.0,67469.0,0.100946]
[1718143732503,1.27118173,67470.0,67469.0,0.100946]
[1718143732946,1.27118173,67470.0,67469.0,0.101946]
[1718143732947,1.27318173,67470.0,67469.0,0.101946]
[1718143733862,1.20118173,67470.0,67469.0,0.101946]
[1718143734108,1.27318173,67470.0,67469.0,0.101946]
[1718143734317,0.91675373,67470.0,67469.0,0.101946]
[1718143734524,0.98875373,67470.0,67469.0,0.101946]
[1718143734734,0.99975373,67470.0,67469.0,0.102946]
[1718143734851,0.98575373,67470.0,67469.0,0.101946]
[1718143735267,0.99975373,67470.0,67469.0,0.101946]
[1718143735469,0.98875373,67470.0,67469.0,0.100946]
[1718143735679,0.88875373,67470.0,67469.0,0.101946]
[1718143735891,0.59827748,67470.0,67469.0,0.101946]
[1718143736141,0.584028,67470.0,67469.0,0.101946]
[1718143737319,0.570028,67470.0,67469.0,0.101946]
[1718143737524,0.556028,67470.0,67469.0,0.100946]
[1718143737719,0.556028,67470.0,67469.0,0.102946]
[1718143737720,0.579028,67470.0,67469.0,0.102946]
[1718143738031,0.65085233,67470.0,67469.0,0.101946]
[1718143738308,0.63785233,67470.0,67469.0,0.100946]
[1718143738519,0.64785233,67470.0,67469.0,0.102946]
[1718143738730,0.66085233,67470.0,67469.0,0.102946]
[1718143739609,0.80517226,67470.0,67469.0,0.102946]
[1718143743457,0.73317226,67470.0,67469.0,0.102946]
[1718143743664,0.80517226,67470.0,67469.0,0.102946]
[1718143744094,1.0061708,67470.0,67469.0,0.102946]
[1718143744522,0.9341708,67470.0,67469.0,0.102946]
[1718143744729,1.0061708,67470.0,67469.0,0.102946]
[1718143745579,0.90517226,67470.0,67469.0,0.102946]
[1718143745820,1.00572883,67470.0,67469.0,0.102946]
[1718143749929,0.93372883,67470.0,67469.0,0.102946]
[1718143750147,1.00572883,67470.0,67469.0,0.102946]
[1718143751194,0.6049045,67470.0,67469.0,0.102946]
[1718143751400,0.5329045,67470.0,67469.0,0.102946]
[1718143751609,0.6049045,67470.0,67469.0,0.102946]
[1718143760536,0.5329045,67470.0,67469.0,0.102946]
[1718143760756,0.6049045,67470.0,67469.0,0.102946]
[1718143760970,0.70332648,67470.0,67469.0,0.102946]
[1718143762236,0.6049045,67470.0,67469.0,0.102946]
[1718143763614,0.6039045,67470.0,67469.0,0.102946]
[1718143765172,0.6039045,67470.0,67469.0,0.1296205]
[1718143768025,0.6039045,67470.0,67469.0,0.102946]
[1718143768815,0.13937057,67470.0,67469.0,0.102946]
[1718143769027,0.13937057,67470.0,67469.0,0.3622205]
[1718143769028,0.038814,67470.0,67469.0,0.3622205]
[1718143769574,0.03857,67470.0,67469.0,0.3622205]
[1718143769782,0.038814,67470.0,67469.0,0.3622205]
[1718143770945,0.03857,67470.0,67469.0,0.68144075]
[1718143771149,0.03857,67470.0,67469.0,0.71017141]
[1718143771360,0.03857,67470.0,67469.0,0.91017141]
[1718143772248,0.01857,67470.0,67469.0,0.90917141]
[1718143772668,0.01857,67470.0,67469.0,0.91117141]
[1718143773013,0.00557,67470.0,67469.0,0.91017141]
[1718143773464,0.00557,67470.0,67469.0,0.8103965]
[1718143773465,0.00857,67470.0,67469.0,0.8103965]
[1718143773830,0.00557,67470.0,67469.0,0.8083965]
[1718143774231,0.00657,67470.0,67469.0,0.6103965]
[1718143779484,0.00657,67470.0,67469.0,0.70159928]
[1718143780138,0.00657,67470.0,67469.0,0.6103965]
[1718143783073,0.00657,67470.0,67469.0,0.2295805]
[1718143783074,0.006814,67470.0,67469.0,0.2295805]
[1718143792965,0.006814,67470.0,67469.0,0.3083805]
[1718143793815,0.00657,67470.0,67469.0,0.3083805]
[1718143794221,0.006814,67470.0,67469.0,0.4698805]
[1718143801218,0.006814,67470.0,67469.0,0.6180965]
[1718143801870,0.00657,67470.0,67469.0,0.6180965]
[1718143802103,0.00657,67470.0,67469.0,0.71951835]
[1718143804131,0.02400134,67470.0,67469.0,0.71943565]
[1718143804345,0.00657,67470.0,67469.0,0.71943565]
[1718143804783,0.00657,67470.0,67469.0,1.01664944]
[1718143805005,0.00657,67470.0,67469.0,1.32400846]
[1718143805229,0.00657,67470.0,67469.0,1.22679467]
[1718143806124,0.00657,67470.0,67469.0,1.02679467]
[1718143806397,0.00657,67470.0,67469.0,1.22679467]
[1718143806621,0.00657,67470.0,67469.0,1.07090511]
[1718143807010,0.00657,67470.0,67469.0,1.22677285]
[1718143807840,0.00657,67470.0,67469.0,1.02677285]
[1718143808177,0.00657,67470.0,67469.0,1.02649051]
[1718143810118,0.00657,67470.0,67469.0,1.02650311]
[1718143810338,0.00657,67470.0,67469.0,1.22650311]
[1718143813737,0.00657,67470.0,67469.0,0.91915331]
[1718143814010,0.00657,67470.0,67469.0,0.71915331]
[1718143814465,0.00657,67470.0,67469.0,0.6180965]
[1718143814683,0.00657,67470.0,67469.0,0.76312143]
[1718143814909,0.006814,67470.0,67469.0,0.45340543]
[1718143815135,0.006814,67470.0,67469.0,0.4565965]
[1718143815340,0.006814,67470.0,67469.0,0.3083805]
[1718143815571,0.006814,67470.0,67469.0,0.2295805]
[1718143816017,0.006814,67470.0,67469.0,0.1296205]
[1718143816235,0.006814,67470.0,67469.0,0.2295805]
[1718143824994,0.006814,67470.0,67469.0,0.2262551]
[1718143829411,0.04406543,67470.0,67469.0,0.2262551]
[1718143831125,0.04406543,67470.0,67469.0,0.3744711]
[1718143832078,0.04406543,67470.0,67469.0,0.2745111]
[1718143832283,0.04406543,67470.0,67469.0,0.3744711]
[1718143832508,0.006814,67470.0,67469.0,0.3744711]
[1718143838462,0.006814,67470.0,67469.0,0.4329997]
[1718143838814,0.006814,67470.0,67469.0,0.53435155]
[1718143839653,0.006814,67470.0,67469.0,0.53435186]
[1718143839856,0.00657,67470.0,67469.0,0.53435186]
[1718143840071,0.00657,67470.0,67469.0,0.68555186]
[1718143840273,0.00657,67470.0,67469.0,0.88555186]
[1718143840485,0.00657,67470.0,67469.0,0.68555186]
[1718143840690,0.00657,67470.0,67469.0,0.60651182]
[1718143840895,0.00657,67470.0,67469.0,1.22702519]
[1718143841101,0.00657,67470.0,67469.0,1.43257161]
[1718143841309,0.00657,67470.0,67469.0,1.35681591]
[1718143841513,0.00657,67470.0,67469.0,1.44520919]
[1718143842361,0.00657,67470.0,67469.0,1.35681591]
[1718143843419,0.00657,67470.0,67469.0,1.3441446]
[1718143844183,0.00657,67470.0,67469.0,1.34412447]
[1718143844437,0.00657,67470.0,67469.0,1.34410397]
[1718143845409,0.00657,67470.0,67469.0,1.35677528]
[1718143846051,0.00657,67470.0,67469.0,1.34410397]
[1718143846653,0.00657,67470.0,67469.0,1.35677528]
[1718143847109,0.00657,67470.0,67469.0,2.38648721]
[1718143848040,0.00557,67470.0,67469.0,2.38448721]